fUSD/lending_fUSD_20250716
["ID","MTS","AMOUNT","RATE_DAILY","PERIOD"]
[372521330,1752669085529,-460.0,0.00022191,2]
[372521331,1752669085541,-460.0,0.00022191,2]
[372521332,1752669085551,-460.0,0.00022191,2]
[372521333,1752669085561,-460.0,0.00022191,2]
[372521334,1752669085571,-466.10657976,0.00022191,2]
[372521335,1752669155081,24073.72,0.0003013,120]
[372521337,1752669329559,3711.9,0.00030136,120]
[372521338,1752669351890,200.0,0.0002111,29]
[372521339,1752669363270,-1831.0,0.00019709,2]
[372521342,1752669635786,600.0,0.0003,120]
[372521344,1752669652077,200.0,0.000211,30]
[372521345,1752669653430,452.0,0.0003,120]
[372521346,1752669951564,200.0,0.000211,30]
[372521406,1752670232041,-679.59228694,0.00019597,2]
[372521407,1752670232054,-1496.53496989,0.00019597,2]
[372521408,1752670232064,-1791.26288689,0.00019697,2]
[372521409,1752670232075,-500.0,0.00019797,2]
[372521410,1752670232084,-500.0,0.00019797,2]
[372521411,1752670232094,-300.0,0.00019808,2]
[372521412,1752670232104,-5793.6,0.00019809,2]
[372521413,1752670232114,-1000.0,0.00020009,2]
[372521414,1752670232125,-500.0,0.00020159,2]
[372521415,1752670232134,-900.0,0.00020159,2]
[372521416,1752670232144,-1000.0,0.00020159,2]
[372521417,1752670232154,-2176.12725681,0.00020205,2]
[372521418,1752670232163,-257.82,0.00020376,2]
[372521419,1752670232174,-190.0,0.00020611,7]
[372521420,1752670232184,-516.0,0.00020705,2]
[372521421,1752670232195,-163.73,0.0002075,2]
[372521422,1752670232205,-344.98,0.00020799,2]
[372521423,1752670232215,-1390.79,0.00020799,2]
[372521424,1752670232225,-2176.12725681,0.00020814,2]
[372521425,1752670232237,-151.0,0.00020889,2]
[372521426,1752670232246,-151.0,0.00020889,2]
[372521427,1752670232257,-152.847074,0.0002089,2]
[372521428,1752670232267,-151.0,0.0002089,2]
[372521429,1752670232277,-293.51,0.00020894,2]
[372521430,1752670232287,-250.0,0.0002097,2]
[372521431,1752670232297,-543.0,0.00021,2]
[372521432,1752670232307,-197.72759101,0.00021084,2]
[372521433,1752670232316,-150.0,0.000211,30]
[372521434,1752670232327,-150.0,0.000211,30]
[372521435,1752670232336,-248.70955,0.000211,30]
[372521436,1752670232346,-151.0,0.0002111,2]
[372521437,1752670232356,-151.0,0.0002111,2]
[372521438,1752670232365,-64.23341459,0.00021147,2]
[372521440,1752670232410,-143.16658541,0.00021147,2]
[372521442,1752670232420,-225.84841742,0.000212,2]
[372521447,1752670232456,-4195.44158258,0.000212,2]
[372521449,1752670232466,-884.26,0.000212,2]
[372521451,1752670232476,-176.85,0.000212,2]
[372521453,1752670232487,-150.0,0.00021214,2]
[372521455,1752670232497,-1000.0,0.00021255,2]
[372521458,1752670232507,-401.19411409,0.00021255,2]
[372521461,1752670232518,-441.8653584,0.00021255,2]
[372521465,1752670232530,-56.94052751,0.00021255,2]
[372521468,1752670232540,-1134.63788249,0.000213,2]
[372521498,1752670237761,-3286.65211751,0.000213,2]
[372521499,1752670237771,-884.26,0.000213,2]
[372521500,1752670237781,-176.85,0.000213,2]
[372521501,1752670237792,-257.82,0.00021395,2]
[372521502,1752670237803,-255.0,0.0002141,2]
[372521503,1752670237812,-29.17054713,0.00021415,2]
[372521504,1752670237824,-177.19383188,0.00021415,2]
[372521505,1752670237834,-1610.36075846,0.00021422,2]
[372521506,1752670237856,-565.76649835,0.00021422,2]
[372521507,1752670237868,-4421.29,0.000215,2]
[372521508,1752670237880,-884.26,0.000215,2]
[372521509,1752670237891,-176.85,0.000215,2]
[372521510,1752670237902,-250.0,0.00021557,2]
[372521511,1752670237911,-1190.88487,0.00021596,30]
[372521512,1752670237922,-250.0,0.00021667,2]
[372521513,1752670237931,-1000.0,0.00021667,2]
[372521514,1752670237942,-570.123325,0.00021747,8]
[372521515,1752670237952,-4421.29,0.000218,2]
[372521516,1752670237963,-884.26,0.000218,2]
[372521517,1752670237972,-5000.0,0.00021817,2]
[372521518,1752670237982,-273.9373,0.00021817,2]
[372521519,1752670237993,-1681.9481,0.00021817,2]
[372521520,1752670238003,-169.37671795,0.00021817,2]
[372521521,1752670238012,-160.17105683,0.00021817,2]
[372521522,1752670238022,-169.37671789,0.00021882,2]
[372521523,1752670238032,-1862.23641955,0.00021891,2]
[372521524,1752670238041,-1148.65,0.000219,2]
[372521525,1752670238050,-151.0,0.000219,2]
[372521526,1752670238061,-2000.0,0.000219,2]
[372521527,1752670238071,-1465.16473439,0.00021907,2]
[372521528,1752670238080,-151.0,0.00021916,2]
[372521530,1752670238090,-500.0,0.00021916,2]
[372521532,1752670238099,-500.0,0.00021916,2]
[372521533,1752670238109,-500.0,0.00021916,2]
[372521534,1752670238118,-500.0,0.00021916,2]
[372521535,1752670238128,-500.0,0.00021916,2]
[372521536,1752670238138,-500.0,0.00021916,2]
[372521537,1752670238147,-500.0,0.00021916,2]
[372521538,1752670238157,-500.0,0.00021916,2]
[372521539,1752670238166,-500.0,0.00021916,2]
[372521540,1752670238176,-500.0,0.00021916,2]
[372521541,1752670238185,-500.0,0.00021916,2]
[372521543,1752670238195,-442.74301579,0.00021916,2]
[372521545,1752670238207,-57.25698421,0.00021916,2]
[372521546,1752670238216,-500.0,0.00021916,2]
[372521547,1752670238226,-500.0,0.00021916,2]
[372521548,1752670238236,-500.0,0.00021916,2]
[372521549,1752670238246,-500.0,0.00021916,2]
[372521550,1752670238255,-104.79518769,0.00021916,2]
[372521677,1752670239987,-395.20481231,0.00021916,2]
[372521679,1752670239997,-500.0,0.00021916,2]
[372521680,1752670240006,-500.0,0.00021916,2]
[372521682,1752670240016,-500.0,0.00021916,2]
[372521684,1752670240025,-500.0,0.00021916,2]
[372521686,1752670240035,-500.0,0.00021916,2]
[372521687,1752670240044,-500.0,0.00021916,2]
[372521689,1752670240053,-500.0,0.00021916,2]
[372521691,1752670240062,-500.0,0.00021916,2]
[372521692,1752670240071,-500.0,0.00021916,2]
[372521694,1752670240080,-500.0,0.00021916,2]
[372521696,1752670240089,-500.0,0.00021916,2]
[372521698,1752670240099,-500.0,0.00021916,2]
[372521716,1752670240316,-500.0,0.00021916,2]
[372521718,1752670240326,-500.0,0.00021916,2]
[372521720,1752670240335,-196.30435181,0.00021916,2]
[372521721,1752670240345,-500.0,0.00021916,2]
[372521723,1752670240355,-500.0,0.00021916,2]
[372521725,1752670240364,-500.0,0.00021916,2]
[372521727,1752670240373,-500.0,0.00021916,2]
[372521728,1752670240383,-500.0,0.00021916,2]
[372521730,1752670240392,-500.0,0.00021916,2]
[372521732,1752670240402,-272.33204898,0.00021916,2]
[372521734,1752670240411,-500.0,0.00021916,2]
[372521736,1752670240422,-216.9694636,0.00021916,2]
[372521738,1752670240431,-274.08304284,0.00021916,2]
[372521740,1752670240441,-186.65880941,0.00021916,2]
[372521741,1752670240450,-460.0,0.00021917,2]
[372521743,1752670240460,-460.0,0.00021917,2]
[372521745,1752670240470,-151.0,0.00021917,2]
[372521747,1752670240479,-220.301521,0.00021917,2]
[372521749,1752670240490,-542.66064913,0.00021917,2]
[372521751,1752670240499,-460.0,0.00021917,2]
[372521752,1752670240508,-460.0,0.00021917,2]
[372521754,1752670240518,-460.0,0.00021917,2]
[372521756,1752670240527,-460.0,0.00021917,2]
[372521758,1752670240538,-514.01,0.00021917,2]
[372521760,1752670240549,-460.0,0.00021917,2]
[372521762,1752670240559,-460.0,0.00021917,2]
[372521764,1752670240569,-460.0,0.00021917,2]
[372521766,1752670240579,-460.0,0.00021917,2]
[372521767,1752670240590,-460.0,0.00021917,2]
[372521769,1752670240600,-460.0,0.00021917,2]
[372521771,1752670240609,-469.71168081,0.00021917,2]
[372521773,1752670240620,-460.0,0.00021917,2]
[372521774,1752670240629,-460.0,0.00021917,2]
[372521776,1752670240639,-460.0,0.00021917,2]
[372521778,1752670240648,-460.0,0.00021917,2]
[372521780,1752670240658,-460.0,0.00021917,2]
[372521782,1752670240667,-159.25872685,0.00021917,2]
[372521784,1752670240677,-460.0,0.00021917,2]
[372521785,1752670240687,-493.28762496,0.00021917,2]
[372521787,1752670240697,-460.0,0.00021917,2]
[372521789,1752670240706,-460.0,0.00021917,2]
[372521791,1752670240716,-460.0,0.00021917,2]
[372521793,1752670240726,-669.38,0.00021917,2]
[372521795,1752670240737,-460.0,0.00021917,2]
[372521796,1752670240747,-460.0,0.00021917,2]
[372521798,1752670240756,-1280.741813,0.00021917,2]
[372521800,1752670240766,-153.228135,0.00021917,2]
[372521802,1752670240776,-460.0,0.00021917,2]
[372521804,1752670240785,-460.0,0.00021917,2]
[372521806,1752670240795,-1315.596169,0.00021917,2]
[372521808,1752670240804,-460.0,0.00021917,2]
[372521809,1752670240814,-460.0,0.00021917,2]
[372521811,1752670240823,-460.0,0.00021917,2]
[372521813,1752670240833,-460.0,0.00021917,2]
[372521815,1752670240842,-1322.279457,0.00021917,2]
[372521817,1752670240851,-460.0,0.00021917,2]
[372521819,1752670240860,-460.0,0.00021917,2]
[372521820,1752670240870,-460.0,0.00021917,2]
[372521822,1752670240881,-460.0,0.00021917,2]
[372521824,1752670240890,-460.0,0.00021917,2]
[372521826,1752670240900,-460.0,0.00021917,2]
[372521828,1752670240910,-460.0,0.00021917,2]
[372521830,1752670240919,-460.0,0.00021917,2]
[372521832,1752670240928,-460.0,0.00021917,2]
[372521833,1752670240938,-460.0,0.00021917,2]
[372521835,1752670240947,-799.69,0.00021917,2]
[372521837,1752670240955,-460.0,0.00021917,2]
[372521839,1752670240965,-460.0,0.00021917,2]
[372521840,1752670240974,-460.0,0.00021917,2]
[372521842,1752670240983,-514.97047773,0.00021917,2]
[372521844,1752670240993,-460.0,0.00021917,2]
[372521846,1752670241003,-462.36796185,0.00021917,2]
[372521848,1752670241012,-460.0,0.00021917,2]
[372521850,1752670241022,-500.0,0.00021917,2]
[372521852,1752670241032,-500.0,0.00021917,2]
[372521854,1752670241041,-460.0,0.00021917,2]
[372521856,1752670241050,-500.0,0.00021917,2]
[372521858,1752670241060,-502.84470366,0.00021917,2]
[372521859,1752670241069,-460.0,0.00021917,2]
[372521860,1752670241078,-460.0,0.00021917,2]
[372521861,1752670241087,-460.0,0.00021917,2]
[372521862,1752670241096,-460.0,0.00021917,2]
[372521863,1752670241106,-460.0,0.00021917,2]
[372521864,1752670241114,-460.0,0.00021917,2]
[372521865,1752670241124,-460.0,0.00021917,2]
[372521866,1752670241133,-460.0,0.00021917,2]
[372521867,1752670241141,-460.0,0.00021917,2]
[372521868,1752670241151,-460.0,0.00021917,2]
[372521869,1752670241160,-742.93,0.00021917,2]
[372521870,1752670241169,-460.0,0.00021917,2]
[372521871,1752670241178,-460.0,0.00021917,2]
[372521872,1752670241186,-460.0,0.00021917,2]
[372521873,1752670241196,-460.0,0.00021917,2]
[372521875,1752670241205,-460.0,0.00021917,2]
[372521877,1752670241215,-463.92664724,0.00021917,2]
[372521879,1752670241224,-460.0,0.00021917,2]
[372521881,1752670241233,-460.0,0.00021917,2]
[372521883,1752670241244,-891.29,0.00021917,2]
[372521885,1752670241254,-460.0,0.00021917,2]
[372521887,1752670241263,-460.0,0.00021917,2]
[372521889,1752670241273,-460.0,0.00021917,2]
[372521891,1752670241282,-460.0,0.00021917,2]
[372521893,1752670241291,-460.0,0.00021917,2]
[372521895,1752670241300,-460.0,0.00021917,2]
[372521896,1752670241309,-460.0,0.00021917,2]
[372521899,1752670241319,-460.0,0.00021917,2]
[372521901,1752670241328,-294.670015,0.00021917,2]
[372521903,1752670241338,-460.0,0.00021917,2]
[372521904,1752670241348,-460.0,0.00021917,2]
[372521906,1752670241357,-460.0,0.00021917,2]
[372521926,1752670241540,-460.0,0.00021917,2]
[372521928,1752670241550,-460.0,0.00021917,2]
[372521930,1752670241560,-460.0,0.00021917,2]
[372521932,1752670241569,-460.0,0.00021917,2]
[372521934,1752670241581,-460.0,0.00021917,2]
[372521937,1752670241591,-460.0,0.00021917,2]
[372521939,1752670241600,-460.0,0.00021917,2]
[372521940,1752670241610,-467.96446898,0.00021917,2]
[372521942,1752670241621,-460.0,0.00021917,2]
[372521945,1752670241632,-460.0,0.00021917,2]
[372521947,1752670241641,-460.0,0.00021917,2]
[372521949,1752670241650,-460.0,0.00021917,2]
[372521951,1752670241660,-485.32,0.00021917,2]
[372521953,1752670241670,-492.04,0.00021917,2]
[372521955,1752670241680,-460.0,0.00021917,2]
[372521957,1752670241692,-460.0,0.00021917,2]
[372521959,1752670241702,-460.0,0.00021917,2]
[372521961,1752670241713,-492.22,0.00021917,2]
[372521963,1752670241722,-460.0,0.00021917,2]
[372521965,1752670241733,-460.0,0.00021917,2]
[372521967,1752670241744,-484.35,0.00021917,2]
[372521969,1752670241755,-500.0,0.00021917,2]
[372521971,1752670241764,-541.18,0.00021917,2]
[372521973,1752670241774,-500.0,0.00021917,2]
[372521975,1752670241784,-500.0,0.00021917,2]
[372521977,1752670241794,-500.0,0.00021917,2]
[372521979,1752670241803,-500.0,0.00021917,2]
[372521981,1752670241813,-500.0,0.00021917,2]
[372521983,1752670241822,-460.0,0.00021917,2]
[372521985,1752670241832,-460.0,0.00021917,2]
[372521987,1752670241842,-460.0,0.00021917,2]
[372521990,1752670241852,-460.0,0.00021917,2]
[372521992,1752670241862,-460.0,0.00021917,2]
[372521994,1752670241872,-460.0,0.00021917,2]
[372521996,1752670241882,-460.0,0.00021917,2]
[372521997,1752670241891,-460.0,0.00021917,2]
[372521999,1752670241902,-460.0,0.00021917,2]
[372522002,1752670241911,-460.0,0.00021917,2]
[372522004,1752670241921,-579.14441638,0.00021917,2]
[372522006,1752670241930,-460.0,0.00021917,2]
[372522008,1752670241940,-460.0,0.00021917,2]
[372522009,1752670241949,-460.0,0.00021917,2]
[372522011,1752670241959,-460.0,0.00021917,2]
[372522014,1752670241969,-460.0,0.00021917,2]
[372522016,1752670241978,-501.42,0.00021917,2]
[372522018,1752670241989,-1062.43,0.00021917,2]
[372522019,1752670241998,-502.09,0.00021917,2]
[372522022,1752670242009,-477.86,0.00021917,2]
[372522023,1752670242018,-460.0,0.00021917,2]
[372522026,1752670242028,-460.0,0.00021917,2]
[372522027,1752670242037,-460.0,0.00021917,2]
[372522029,1752670242047,-460.0,0.00021917,2]
[372522031,1752670242056,-460.0,0.00021917,2]
[372522034,1752670242066,-460.0,0.00021917,2]
[372522035,1752670242076,-500.0,0.00021917,2]
[372522038,1752670242085,-460.0,0.00021917,2]
[372522040,1752670242095,-460.0,0.00021917,2]
[372522042,1752670242104,-1432.49,0.00021917,2]
[372522044,1752670242114,-425.84487784,0.00021917,2]
[372522046,1752670242123,-460.0,0.00021917,2]
[372522048,1752670242133,-460.0,0.00021917,2]
[372522050,1752670242142,-460.0,0.00021917,2]
[372522052,1752670242151,-460.0,0.00021917,2]
[372522054,1752670242161,-460.0,0.00021917,2]
[372522055,1752670242170,-1312.01,0.00021917,2]
[372522057,1752670242179,-460.0,0.00021917,2]
[372522060,1752670242189,-460.0,0.00021917,2]
[372522062,1752670242199,-460.0,0.00021917,2]
[372522064,1752670242208,-460.0,0.00021917,2]
[372522066,1752670242218,-755.75,0.00021917,2]
[372522067,1752670242228,-460.0,0.00021917,2]
[372522070,1752670242238,-460.0,0.00021917,2]
[372522072,1752670242248,-460.0,0.00021917,2]
[372522074,1752670242258,-460.0,0.00021917,2]
[372522076,1752670242267,-460.0,0.00021917,2]
[372522078,1752670242276,-460.0,0.00021917,2]
[372522080,1752670242286,-460.0,0.00021917,2]
[372522081,1752670242296,-460.0,0.00021917,2]
[372522084,1752670242306,-1676.29,0.00021917,2]
[372522085,1752670242316,-540.73,0.00021917,2]
[372522088,1752670242326,-460.0,0.00021917,2]
[372522090,1752670242335,-460.0,0.00021917,2]
[372522091,1752670242344,-460.0,0.00021917,2]
[372522094,1752670242354,-460.0,0.00021917,2]
[372522095,1752670242363,-460.0,0.00021917,2]
[372522097,1752670242373,-460.0,0.00021917,2]
[372522100,1752670242384,-460.0,0.00021917,2]
[372522102,1752670242393,-460.0,0.00021917,2]
[372522104,1752670242402,-693.17,0.00021917,2]
[372522106,1752670242412,-492.15,0.00021917,2]
[372522108,1752670242422,-460.0,0.00021917,2]
[372522110,1752670242432,-2513.0,0.00021917,2]
[372522111,1752670242441,-460.0,0.00021917,2]
[372522113,1752670242451,-460.0,0.00021917,2]
[372522115,1752670242460,-162.97046195,0.00021917,2]
[372522117,1752670242470,-460.0,0.00021917,2]
[372522120,1752670242480,-460.0,0.00021917,2]
[372522122,1752670242493,-539.06,0.00021917,2]
[372522124,1752670242504,-460.0,0.00021917,2]
[372522127,1752670242514,-1098.13,0.00021917,2]
[372522130,1752670242524,-1438.28,0.00021917,2]
[372522133,1752670242535,-460.0,0.00021917,2]
[372522134,1752670242549,-460.0,0.00021917,2]
[372522137,1752670242561,-460.0,0.00021917,2]
[372522140,1752670242571,-1298.44,0.00021917,2]
[372522142,1752670242583,-460.0,0.00021917,2]
[372522144,1752670242593,-460.0,0.00021917,2]
[372522146,1752670242602,-460.0,0.00021917,2]
[372522148,1752670242612,-460.0,0.00021917,2]
[372522150,1752670242624,-460.0,0.00021917,2]
[372522152,1752670242634,-500.0,0.00021917,2]
[372522154,1752670242644,-500.0,0.00021917,2]
[372522156,1752670242653,-1111.67,0.00021917,2]
[372522158,1752670242662,-1040.83,0.00021917,2]
[372522160,1752670242672,-460.0,0.00021917,2]
[372522163,1752670242682,-471.09,0.00021917,2]
[372522165,1752670242691,-470.71,0.00021917,2]
[372522167,1752670242701,-460.0,0.00021917,2]
[372522169,1752670242710,-460.0,0.00021917,2]
[372522171,1752670242720,-460.0,0.00021917,2]
[372522173,1752670242730,-599.73,0.00021917,2]
[372522176,1752670242744,-465.48,0.00021917,2]
[372522178,1752670242754,-460.0,0.00021917,2]
[372522181,1752670242765,-460.0,0.00021917,2]
[372522183,1752670242775,-460.0,0.00021917,2]
[372522185,1752670242784,-2017.05,0.00021917,2]
[372522187,1752670242793,-652.27,0.00021917,2]
[372522189,1752670242803,-460.0,0.00021917,2]
[372522191,1752670242813,-460.0,0.00021917,2]
[372522193,1752670242822,-779.88,0.00021917,2]
[372522195,1752670242832,-1346.9,0.00021917,2]
[372522197,1752670242841,-460.0,0.00021917,2]
[372522199,1752670242851,-460.0,0.00021917,2]
[372522201,1752670242860,-609.21,0.00021917,2]
[372522203,1752670242870,-460.0,0.00021917,2]
[372522205,1752670242880,-751.0,0.00021917,2]
[372522207,1752670242889,-460.0,0.00021917,2]
[372522209,1752670242903,-500.0,0.00021917,2]
[372522211,1752670242914,-500.0,0.00021917,2]
[372522214,1752670242926,-460.0,0.00021917,2]
[372522216,1752670242939,-460.0,0.00021917,2]
[372522218,1752670242951,-460.0,0.00021917,2]
[372522220,1752670242962,-460.0,0.00021917,2]
[372522223,1752670242973,-460.0,0.00021917,2]
[372522225,1752670242983,-648.88,0.00021917,2]
[372522227,1752670242996,-460.0,0.00021917,2]
[372522229,1752670243007,-460.0,0.00021917,2]
[372522231,1752670243019,-581.63,0.00021917,2]
[372522233,1752670243031,-1317.46,0.00021917,2]
[372522236,1752670243043,-460.0,0.00021917,2]
[372522238,1752670243059,-1261.82,0.00021917,2]
[372522241,1752670243071,-460.0,0.00021917,2]
[372522243,1752670243083,-645.85,0.00021917,2]
[372522245,1752670243094,-574.24,0.00021917,2]
[372522247,1752670243105,-460.0,0.00021917,2]
[372522249,1752670243117,-460.0,0.00021917,2]
[372522252,1752670243128,-544.38,0.00021917,2]
[372522254,1752670243139,-455.27337333,0.00021917,2]
[372522256,1752670243148,-460.0,0.00021917,2]
[372522258,1752670243159,-460.0,0.00021917,2]
[372522260,1752670243170,-460.0,0.00021917,2]
[372522262,1752670243182,-1289.05,0.00021917,2]
[372522265,1752670243198,-460.0,0.00021917,2]
[372522267,1752670243210,-460.0,0.00021917,2]
[372522269,1752670243222,-460.0,0.00021917,2]
[372522272,1752670243233,-1078.33,0.00021917,2]
[372522274,1752670243246,-460.0,0.00021917,2]
[372522276,1752670243257,-460.0,0.00021917,2]
[372522278,1752670243269,-861.0,0.00021917,2]
[372522280,1752670243281,-1818.36,0.00021917,2]
[372522283,1752670243292,-460.0,0.00021917,2]
[372522285,1752670243305,-460.0,0.00021917,2]
[372522287,1752670243316,-460.0,0.00021917,2]
[372522290,1752670243328,-460.0,0.00021917,2]
[372522292,1752670243341,-463.37739623,0.00021917,2]
[372522294,1752670243351,-460.0,0.00021917,2]
[372522296,1752670243364,-500.0,0.00021917,2]
[372522299,1752670243376,-624.25,0.00021917,2]
[372522301,1752670243386,-460.0,0.00021917,2]
[372522303,1752670243398,-460.0,0.00021917,2]
[372522305,1752670243410,-493.26,0.00021917,2]
[372522307,1752670243422,-460.0,0.00021917,2]
[372522310,1752670243434,-500.0,0.00021917,2]
[372522312,1752670243447,-500.0,0.00021917,2]
[372522314,1752670243459,-460.0,0.00021917,2]
[372522317,1752670243470,-460.0,0.00021917,2]
[372522319,1752670243481,-460.0,0.00021917,2]
[372522321,1752670243494,-460.0,0.00021917,2]
[372522323,1752670243505,-460.0,0.00021917,2]
[372522325,1752670243516,-2976.45,0.00021917,2]
[372522328,1752670243527,-460.0,0.00021917,2]
[372522330,1752670243539,-832.34,0.00021917,2]
[372522332,1752670243551,-523.92,0.00021917,2]
[372522334,1752670243562,-460.0,0.00021917,2]
[372522336,1752670243575,-896.73,0.00021917,2]
[372522339,1752670243589,-912.11,0.00021917,2]
[372522341,1752670243602,-460.0,0.00021917,2]
[372522343,1752670243612,-460.0,0.00021917,2]
[372522345,1752670243623,-460.0,0.00021917,2]
[372522347,1752670243634,-460.0,0.00021917,2]
[372522349,1752670243644,-1232.43,0.00021917,2]
[372522350,1752670243655,-460.0,0.00021917,2]
[372522351,1752670243667,-460.0,0.00021917,2]
[372522352,1752670243678,-460.0,0.00021917,2]
[372522353,1752670243690,-777.88,0.00021917,2]
[372522354,1752670243704,-460.0,0.00021917,2]
[372522355,1752670243718,-460.0,0.00021917,2]
[372522356,1752670243730,-1849.48,0.00021917,2]
[372522357,1752670243743,-460.0,0.00021917,2]
[372522358,1752670243755,-460.0,0.00021917,2]
[372522359,1752670243766,-460.0,0.00021917,2]
[372522360,1752670243778,-460.0,0.00021917,2]
[372522361,1752670243789,-518.79,0.00021917,2]
[372522362,1752670243799,-470.66,0.00021917,2]
[372522363,1752670243810,-2581.01,0.00021917,2]
[372522364,1752670243822,-460.0,0.00021917,2]
[372522365,1752670243833,-460.0,0.00021917,2]
[372522366,1752670243844,-460.0,0.00021917,2]
[372522367,1752670243854,-460.0,0.00021917,2]
[372522368,1752670243866,-963.36,0.00021917,2]
[372522369,1752670243876,-283.5642726,0.00021917,2]
[372522370,1752670243888,-544.49,0.00021917,2]
[372522371,1752670243899,-2484.79,0.00021917,2]
[372522372,1752670243910,-460.0,0.00021917,2]
[372522373,1752670243921,-460.0,0.00021917,2]
[372522374,1752670243931,-462.95495067,0.00021917,2]
[372522376,1752670243942,-460.0,0.00021917,2]
[372522378,1752670243953,-460.0,0.00021917,2]
[372522380,1752670243964,-1179.62,0.00021917,2]
[372522382,1752670243974,-460.0,0.00021917,2]
[372522384,1752670243985,-460.0,0.00021917,2]
[372522386,1752670243998,-460.0,0.00021917,2]
[372522388,1752670244009,-460.0,0.00021917,2]
[372522390,1752670244019,-460.0,0.00021917,2]
[372522392,1752670244029,-961.61,0.00021917,2]
[372522394,1752670244046,-460.0,0.00021917,2]
[372522395,1752670244057,-460.0,0.00021917,2]
[372522396,1752670244067,-460.0,0.00021917,2]
[372522397,1752670244077,-460.0,0.00021917,2]
[372522398,1752670244088,-460.0,0.00021917,2]
[372522399,1752670244098,-460.0,0.00021917,2]
[372522400,1752670244109,-460.0,0.00021917,2]
[372522401,1752670244120,-460.0,0.00021917,2]
[372522402,1752670244131,-460.0,0.00021917,2]
[372522403,1752670244142,-460.0,0.00021917,2]
[372522404,1752670244153,-476.59,0.00021917,2]
[372522405,1752670244164,-544.98123664,0.00021917,2]
[372522406,1752670244175,-744.6,0.00021917,2]
[372522407,1752670244186,-659.6,0.00021917,2]
[372522408,1752670244197,-460.0,0.00021917,2]
[372522409,1752670244209,-460.0,0.00021917,2]
[372522410,1752670244219,-460.0,0.00021917,2]
[372522411,1752670244230,-460.0,0.00021917,2]
[372522412,1752670244242,-542.01,0.00021917,2]
[372522413,1752670244252,-1566.45,0.00021917,2]
[372522414,1752670244263,-936.5,0.00021917,2]
[372522415,1752670244274,-460.0,0.00021917,2]
[372522416,1752670244284,-460.0,0.00021917,2]
[372522417,1752670244295,-460.0,0.00021917,2]
[372522418,1752670244307,-460.0,0.00021917,2]
[372522419,1752670244317,-460.0,0.00021917,2]
[372522420,1752670244328,-460.0,0.00021917,2]
[372522421,1752670244339,-460.0,0.00021917,2]
[372522422,1752670244351,-524.81,0.00021917,2]
[372522423,1752670244361,-460.0,0.00021917,2]
[372522424,1752670244372,-1235.92,0.00021917,2]
[372522425,1752670244382,-460.0,0.00021917,2]
[372522426,1752670244393,-460.0,0.00021917,2]
[372522427,1752670244403,-460.0,0.00021917,2]
[372522428,1752670244415,-460.0,0.00021917,2]
[372522429,1752670244426,-813.99,0.00021917,2]